bitfinex/quotes_SOLUSD_20251128
["timestamp","ask_amount","ask_price","bid_price","bid_amount"]
[1764349091420,3.18,139.11,139.1,8.80994492]
[1764349091716,3.18,139.11,139.1,11.87509425]
[1764349092094,3.18,139.11,139.1,9.46994492]
[1764349092500,3.18,139.11,139.1,13.23499121]
[1764349092694,3.74,139.11,139.1,8.70994492]
[1764349092919,10.92855581,139.11,139.09,59.96807163]
[1764349093222,16.768864,139.1,139.09,59.96807163]
[1764349093596,23.9579366,139.1,139.09,59.96807163]
[1764349095019,0.46,139.1,139.09,59.96807163]
[1764349095205,23.9579366,139.1,139.09,59.96807163]
[1764349095600,16.768864,139.1,139.09,59.96807163]
[1764349096127,23.9579366,139.1,139.09,59.96807163]
[1764349097516,3.18,139.11,139.09,63.73311792]
[1764349097517,23.49761382,139.11,139.09,63.73311792]
[1764349097711,3.64,139.1,139.09,63.73311792]
[1764349097909,3.64,139.1,139.09,59.96807163]
[1764349098120,19.948864,139.1,139.09,59.96807163]
[1764349099424,27.1379366,139.1,139.09,59.96807163]
[1764349099724,30.90298289,139.1,139.09,59.96807163]
[1764349099932,27.1379366,139.1,139.09,59.96807163]
[1764349100310,61.58725095,139.1,139.09,22.46970134]
[1764349100496,68.82632411,139.1,139.09,22.46970134]
[1764349100899,31.4813329,139.1,139.09,22.46970134]
[1764349101098,38.42637919,139.1,139.09,22.46970134]
[1764349101320,38.42637919,139.1,139.09,1e-08]
[1764349101321,70.8263241,139.1,139.09,1e-08]
[1764349101522,0.28432314,139.08,139.02,3.76504629]
[1764349101723,0.28432314,139.08,138.97,7.03025892]
[1764349101724,16.308864,139.06,138.97,7.03025892]
[1764349101927,16.308864,139.05,139.03,3.76504629]
[1764349102136,3.18,139.04,139.03,3.76504629]
[1764349103704,3.18,139.04,138.98,7.19503882]
[1764349103904,10.37232363,139.04,138.97,16.28986731]
[1764349104108,10.37232363,139.04,139.02,3.76504629]
[1764349104309,10.37232363,139.04,138.97,8.80994492]
[1764349104511,10.37232363,139.04,139.02,3.76504629]
[1764349105028,16.308864,139.01,138.96,29.34128919]
[1764349105323,3.18,139.0,138.97,3.76504629]
[1764349105509,3.18,139.0,138.98,3.76504629]
[1764349105709,21.62551811,139.0,138.99,3.76504629]
[1764349105914,24.80551811,139.0,138.99,3.76504629]
[1764349106312,31.99980802,139.0,138.96,29.34128919]
[1764349106513,24.80551811,139.0,138.99,3.76504629]
[1764349107032,19.488864,139.0,138.99,3.76504629]
[1764349107211,3.18,139.0,138.97,8.80994492]
[1764349107418,3.18,139.0,138.99,3.76504629]
[1764349108216,17.97695144,139.07,139.0,8.80994492]
[1764349108419,21.61461147,139.05,139.04,3.76504629]
[1764349108621,21.61461147,139.05,139.03,3.76504629]
[1764349109238,28.80635927,139.05,139.03,3.76504629]
[1764349109420,28.80635927,139.05,139.0,8.80994492]
[1764349109615,16.308864,139.04,139.03,3.76504629]
[1764349109821,16.308864,139.04,138.99,0.7]
[1764349110033,19.488864,139.03,139.02,3.76504629]
[1764349110230,19.488864,139.03,138.99,0.7]
[1764349110432,19.488864,139.03,139.01,3.76504629]
[1764349110743,104.1,139.02,138.97,8.80994492]
[1764349110949,104.1,139.02,139.0,3.76504629]
[1764349111546,111.29322235,139.02,138.97,8.80994492]
[1764349111846,111.29322235,139.02,138.99,3.76504629]
[1764349113242,111.29322235,139.02,139.0,3.76504629]
[1764349113419,111.29322235,139.02,138.99,3.76504629]
[1764349113624,3.18,139.01,139.0,3.76504629]
[1764349114026,16.308864,138.99,138.96,29.34128919]
[1764349114230,3.18,138.98,138.96,29.34128919]
[1764349114549,21.6192844,139.02,138.97,4.46504629]
[1764349114751,3.18,139.01,138.97,0.7]
[1764349114928,3.18,139.01,138.98,0.7]
[1764349115623,3.18,139.0,138.98,7.8952618]
[1764349115853,3.18,139.0,138.99,3.76504629]
[1764349117343,3.18,139.0,138.99,4.46504629]
[1764349118324,3.18,139.0,138.99,0.7]
[1764349118823,3.18,139.0,138.99,4.46504629]
[1764349119246,21.59,139.11,139.0,8.80994492]
[1764349119563,21.61149731,139.08,139.0,0.98432314]
[1764349119862,3.18,139.07,139.04,3.76504629]
[1764349120021,3.18,139.07,139.05,3.76504629]
[1764349121468,3.18,139.07,139.02,3.76504629]
[1764349121469,7.18891839,139.11,139.06,4.46504629]
[1764349121628,3.18,139.1,139.09,3.76504629]
[1764349121949,3.18,139.1,139.08,3.76504629]
[1764349122140,3.18,139.1,139.07,3.76504629]
[1764349122544,3.18,139.09,139.08,3.76504629]
[1764349122755,3.18,139.09,139.08,4.46504629]
[1764349124752,3.18,139.09,139.08,13.27499121]
[1764349125048,3.18,139.09,139.08,4.46504629]
[1764349125762,3.18,139.09,139.08,0.7]
[1764349126052,3.18,139.09,139.08,4.46504629]
[1764349126751,3.18,139.09,139.08,19.5024151]
[1764349126927,3.18,139.09,139.05,7.19119053]
[1764349127126,3.18,139.09,139.07,9.99247018]
[1764349127327,3.18,139.09,139.08,9.99247018]
[1764349127543,3.18,139.09,139.07,9.99247018]
[1764349128258,7.18872891,139.11,139.07,10.69247018]
[1764349128464,3.18,139.09,139.07,10.69247018]
[1764349128966,3.18,139.09,139.02,34.29119295]
[1764349128967,3.18,139.09,139.08,19.5024151]
[1764349129628,3.18,139.12,139.09,8.80994492]
[1764349129824,3.18,139.12,139.1,10.69247018]
[1764349130540,3.18,139.12,139.1,0.7]
[1764349130761,3.18,139.12,139.1,10.69247018]
[1764349131332,3.18,139.12,139.09,9.99247018]
[1764349131640,3.18,139.12,139.09,10.69247018]
[1764349132248,3.18,139.12,139.1,9.99247018]
[1764349132447,3.18,139.12,139.09,10.69247018]
[1764349133146,3.18,139.12,139.08,18.8024151]
[1764349133346,3.18,139.12,139.08,19.5024151]
[1764349133545,3.18,139.12,139.09,9.99247018]
[1764349133744,10.36813244,139.12,139.08,18.8024151]
[1764349133946,10.36813244,139.12,139.07,0.7]
[1764349133947,3.18,139.12,139.09,0.7]
[1764349134135,3.18,139.12,139.08,9.99247018]
[1764349134459,3.18,139.12,139.09,9.99247018]
[1764349135345,10.72809085,139.12,139.08,10.69247018]
[1764349135746,10.35247018,139.11,139.05,19.5024151]
[1764349135948,104.1,139.1,139.05,19.5024151]
[1764349136156,3.18,139.09,139.05,19.5024151]
[1764349136352,120.408864,139.08,139.05,8.80994492]
[1764349136657,120.408864,139.08,139.05,9.50994492]
[1764349136658,104.1,139.07,139.05,9.50994492]
[1764349136837,3.18,139.06,139.05,18.8024151]
[1764349137242,3.18,139.06,139.04,9.99247018]
[1764349137542,3.18,139.06,139.05,8.80994492]
[1764349137745,104.1,139.07,139.06,8.80994492]
[1764349138060,107.28,139.07,139.06,19.5024151]
[1764349139441,107.28,139.07,139.06,9.50994492]
[1764349139738,107.28,139.07,139.06,19.5024151]
[1764349140560,107.28,139.07,139.03,7.89233698]
[1764349140853,107.28,139.07,139.05,9.99247018]
[1764349141060,107.28,139.07,139.04,9.50994492]
[1764349141255,107.28,139.07,139.06,8.80994492]
[1764349141646,107.28,139.07,139.06,9.50994492]
[1764349142265,107.28,139.07,139.06,19.5024151]
[1764349142959,3.18,139.07,139.06,19.5024151]
[1764349145966,3.18,139.07,139.01,34.29270655]
[1764349146287,3.18,139.07,139.03,10.68247018]
[1764349146581,3.54,139.07,139.03,4.45989434]
[1764349147158,0.36,139.06,139.03,8.80994492]
[1764349147339,14.50053198,139.07,139.03,8.80994492]
[1764349147546,14.50053198,139.07,139.03,9.49994492]
[1764349148876,14.14053198,139.07,139.03,8.80994492]
[1764349149070,10.37063764,139.07,139.03,9.49994492]
[1764349149447,104.1,139.06,139.03,9.49994492]
[1764349150548,111.29114786,139.06,139.03,9.49994492]
[1764349150950,104.1,139.06,139.03,9.49994492]
[1764349151164,104.1,139.06,139.03,8.80994492]
[1764349152062,104.1,139.06,139.01,8.80994492]
[1764349152063,20.43875834,139.05,139.01,8.80994492]
[1764349152268,3.18,139.04,139.01,13.26983926]
[1764349154057,3.18,139.04,139.01,13.22983926]
[1764349154369,10.3725239,139.04,139.01,4.41989434]
[1764349154552,10.3725239,139.04,139.0,2.41364147]
[1764349154969,10.7325239,139.04,139.0,3.06364147]
[1764349155555,10.3725239,139.04,139.01,0.65]
[1764349156271,10.7325239,139.04,139.0,8.80994492]
[1764349156669,10.7325239,139.04,139.0,9.45994492]
[1764349156869,13.14616537,139.04,139.0,9.45994492]
[1764349157061,20.19246882,139.04,139.0,9.45994492]
[1764349157261,22.60611029,139.04,139.0,9.45994492]
[1764349157576,22.24611029,139.04,139.0,9.45994492]
[1764349157762,12.63994492,139.04,139.01,0.65]
[1764349158080,10.37227296,139.04,139.01,0.65]
[1764349158279,12.78591443,139.04,139.01,0.65]
[1764349158478,2.41364147,139.02,138.98,0.65]
[1764349158666,107.28,139.01,138.98,0.65]
[1764349159056,3.18,139.01,138.98,0.65]
[1764349159257,7.1942446,139.0,138.97,8.80994492]
[1764349159478,9.96788607,139.0,138.96,29.99128919]
[1764349159855,9.60788607,139.0,138.96,29.99128919]
[1764349160472,9.60788607,139.0,138.96,29.34128919]
[1764349160776,24.8024008,139.01,138.97,0.65]
[1764349160959,3.18,139.0,138.98,8.80994492]
[1764349161356,19.488864,139.0,138.99,0.65]
[1764349162049,16.308864,139.0,138.97,0.65]
[1764349162254,3.18,138.99,138.98,9.45994492]
[1764349162660,3.18,138.99,138.98,0.65]
[1764349163280,16.308864,139.0,138.98,0.65]
[1764349163582,3.18,138.99,138.98,0.65]
[1764349166554,3.18,138.99,138.96,29.99128919]
[1764349166763,3.18,138.99,138.96,29.34128919]
[1764349166764,5.95364147,138.99,138.96,29.34128919]
[1764349167082,3.18,138.98,138.96,29.99128919]
[1764349167274,104.1,138.97,138.96,29.99128919]
[1764349167477,104.1,138.97,138.96,29.34128919]
[1764349167686,2.77364147,138.97,138.96,29.34128919]
[1764349167983,34.41602751,138.98,138.96,29.34128919]
[1764349168284,32.36238604,138.98,138.96,29.34128919]
[1764349168469,34.77602751,138.98,138.96,29.34128919]
[1764349169077,9.60943912,138.97,138.96,29.34128919]
[1764349169586,9.96943912,138.97,138.96,29.34128919]
[1764349169964,9.60943912,138.97,138.96,29.34128919]
[1764349170186,2.41364147,138.97,138.96,29.34128919]
[1764349170773,9.60943912,138.97,138.96,29.34128919]
[1764349170974,9.96943912,138.97,138.96,29.34128919]
[1764349171168,31.59807543,138.97,138.96,29.34128919]
[1764349172373,24.04227778,138.97,138.96,29.34128919]
[1764349172573,16.308864,138.97,138.96,29.99128919]
[1764349172885,19.488864,138.97,138.96,29.34128919]
[1764349173772,26.68466165,138.97,138.96,29.34128919]
[1764349173977,29.45830312,138.97,138.96,29.34128919]
[1764349174290,26.68466165,138.97,138.96,29.34128919]
[1764349174492,19.488864,138.97,138.96,29.34128919]
[1764349174666,31.23455256,138.98,138.96,29.34128919]
[1764349174667,16.308864,138.98,138.96,29.99128919]
[1764349174874,3.18,138.97,138.96,29.99128919]
[1764349175081,3.18,138.97,138.96,29.34128919]
[1764349175370,3.18,138.97,138.96,30.03128919]
[1764349178388,3.18,138.97,138.96,29.34128919]
[1764349178889,12.78943912,138.97,138.96,29.34128919]
[1764349179394,13.14943912,138.97,138.96,29.34128919]
[1764349179593,10.37579765,138.97,138.96,29.34128919]
[1764349179897,3.18,138.97,138.96,29.34128919]
[1764349180589,3.18,138.97,138.96,30.03128919]
[1764349180793,12.78943912,138.97,138.96,29.34128919]
[1764349180988,10.73579765,138.97,138.96,29.34128919]
[1764349181171,13.14943912,138.97,138.96,29.34128919]
[1764349181572,34.77807543,138.97,138.96,29.34128919]
[1764349185490,31.23807543,138.97,138.96,29.34128919]
[1764349185670,12.78943912,138.97,138.96,29.34128919]
[1764349185869,19.488864,138.97,138.96,29.34128919]
[1764349186097,19.488864,138.97,138.96,30.03128919]
[1764349186284,3.18,138.97,138.96,30.03128919]
[1764349188794,3.18,138.97,138.96,29.34128919]
[1764349189419,10.37579765,138.97,138.96,29.34128919]
[1764349189580,25.18209107,138.99,138.96,30.03128919]
[1764349189781,3.18,138.98,138.97,0.69]
[1764349190206,3.18,138.98,138.96,29.34128919]
[1764349190498,3.18,138.98,138.96,30.03128919]
[1764349195208,3.18,138.97,138.96,30.03128919]
[1764349195788,21.62395934,139.0,138.96,32.44493066]
[1764349195990,3.18,138.99,138.97,0.69]
[1764349196183,3.18,138.98,138.97,0.69]
[1764349198210,3.18,138.98,138.97,7.88579765]
[1764349200112,16.308864,139.0,138.97,7.88579765]
[1764349200288,3.18,138.99,138.98,0.69]
[1764349200488,16.308864,139.02,138.98,3.10438066]
[1764349200699,106.51438066,139.06,139.01,2.41438066]
[1764349200904,2.41438066,139.04,138.96,38.15123411]
[1764349201195,2.41438066,139.01,138.97,0.69]
[1764349201507,3.18,139.0,138.97,3.10438066]
[1764349201710,3.18,139.0,138.96,29.34128919]
[1764349201898,24.31762532,139.0,138.97,0.69]
[1764349202250,2.41438066,138.99,138.96,30.03128919]
[1764349202396,24.67762532,139.0,138.96,30.03128919]
[1764349202592,2.77438066,138.99,138.96,29.34128919]
[1764349203209,2.41438066,138.99,138.96,30.03128919]
[1764349203406,24.31762532,139.0,138.96,29.34128919]
[1764349203717,3.18,138.99,138.97,0.69]
[1764349204301,2.77438066,138.98,138.96,29.34128919]
[1764349204507,2.41438066,138.97,138.96,29.34128919]
[1764349204909,19.08324466,138.97,138.96,29.34128919]
[1764349205702,16.668864,138.97,138.96,29.34128919]
[1764349205903,19.08324466,138.97,138.96,29.34128919]
[1764349206327,19.488864,138.97,138.96,29.34128919]
[1764349206520,22.26324466,138.97,138.96,29.34128919]
[1764349206822,19.848864,138.97,138.96,29.34128919]
[1764349207023,22.26324466,138.97,138.96,29.34128919]
[1764349208327,16.668864,138.97,138.96,29.34128919]
[1764349208500,22.26324466,138.97,138.96,29.34128919]
[1764349209305,21.59,138.96,138.94,2.65201746]
[1764349209506,21.92324466,138.95,138.94,2.65201746]
[1764349209902,24.33762532,138.95,138.94,2.65201746]
[1764349210109,21.92324466,138.95,138.94,2.65201746]
[1764349210524,8.31308446,138.95,138.87,0.71]
[1764349210704,2.41438066,138.91,138.87,0.71]
[1764349210904,3.2,138.9,138.87,0.71]
[1764349211104,8.81438066,138.9,138.87,0.71]
[1764349211414,8.81438066,138.9,138.86,0.71]
[1764349211615,2.41438066,138.89,138.86,0.71]
[1764349212012,11.22876132,138.9,138.86,0.71]
[1764349212216,8.81438066,138.9,138.86,0.71]
[1764349212409,2.41438066,138.88,138.84,64.01515152]
[1764349212609,3.2,138.87,138.85,0.71]
[1764349212904,3.2,138.87,138.84,64.01515152]
[1764349212905,5.61438066,138.87,138.84,64.01515152]
[1764349213105,21.64424082,138.86,138.84,64.72515152]
[1764349213707,21.64424082,138.86,138.85,0.71]
[1764349213908,3.2,138.87,138.85,0.71]
[1764349214208,21.64267936,138.86,138.85,0.71]
[1764349215029,21.64267936,138.86,138.84,64.01515152]
[1764349215338,21.64267936,138.86,138.84,64.72515152]
[1764349215827,25.42378974,138.86,138.84,64.01515152]
[1764349216132,111.08111038,138.85,138.84,64.01515152]
[1764349216333,6.98111038,138.85,138.84,64.01515152]
[1764349219213,28.57111038,138.85,138.84,64.01515152]
[1764349219537,3.2,138.85,138.84,64.01515152]
[1764349220120,6.98111038,138.85,138.84,64.01515152]
[1764349221231,3.2,138.85,138.84,64.01515152]
[1764349221424,23.28997438,138.85,138.84,64.01515152]
[1764349222837,16.308864,138.85,138.84,64.67515152]
[1764349223234,16.308864,138.85,138.84,64.01515152]
[1764349225325,26.71088056,138.85,138.84,64.01515152]
[1764349225522,30.49199094,138.85,138.84,64.01515152]
[1764349226452,23.51088056,138.85,138.84,64.01515152]
[1764349226635,27.29199094,138.85,138.84,64.01515152]
[1764349227142,23.51088056,138.85,138.84,64.01515152]
[1764349227320,111.30031519,138.89,138.84,71.87767698]
[1764349227645,127.60917919,138.89,138.85,0.66]
[1764349227821,127.60917919,138.89,138.85,4.44111038]
[1764349228021,21.64111812,138.88,138.85,4.44111038]
[1764349228221,21.64111812,138.88,138.86,3.86]
[1764349228642,21.64111812,138.88,138.87,0.66]
[1764349228850,127.60917919,138.89,138.87,0.66]
[1764349229231,10.98304233,138.88,138.87,0.66]
[1764349229534,111.30031519,138.89,138.87,0.66]
[1764349229852,118.50224714,138.89,138.87,0.66]
[1764349230066,118.50224714,138.89,138.86,3.86]
[1764349230926,111.30193195,138.89,138.86,3.86]
[1764349231146,7.20193195,138.89,138.87,0.66]
[1764349231348,16.308864,138.91,138.87,0.66]
[1764349231553,21.63799632,138.9,138.87,0.66]
[1764349231767,21.63799632,138.9,138.87,3.86]
[1764349232267,21.63799632,138.9,138.88,0.66]
[1764349233723,21.63799632,138.9,138.88,4.44111038]
[1764349233929,16.308864,138.91,138.89,0.66]
[1764349234156,16.308864,138.91,138.9,3.2]
[1764349234369,27.28908672,138.91,138.88,3.2]
[1764349234534,3.78111038,138.9,138.88,3.2]
[1764349234732,20.08997438,138.91,138.88,3.2]
[1764349234928,16.308864,138.91,138.89,0.66]
[1764349235127,23.50782465,138.91,138.89,0.66]
[1764349235552,16.308864,138.91,138.89,0.66]
[1764349237160,16.308864,138.91,138.87,7.20083726]
[1764349237322,27.2888806,138.91,138.87,3.2]
[1764349237526,27.2888806,138.91,138.88,0.68]
[1764349237961,23.50777022,138.91,138.88,0.68]
[1764349238141,27.2888806,138.91,138.88,0.68]
[1764349238634,20.08997438,138.91,138.88,0.68]
[1764349239942,21.63799632,138.9,138.88,0.68]
[1764349240656,28.83757109,138.9,138.88,0.68]
[1764349240857,32.61868147,138.9,138.88,0.68]
[1764349241651,104.1,138.89,138.88,0.68]
[1764349242041,104.1,138.89,138.87,3.88]
[1764349242262,3.78111038,138.88,138.85,3.88]
[1764349242562,3.78111038,138.88,138.86,0.68]
[1764349242866,21.64267936,138.87,138.86,0.68]
[1764349244071,7.20058233,138.88,138.86,0.68]
[1764349244239,28.84326169,138.88,138.86,0.68]
[1764349244436,21.64267936,138.88,138.86,0.68]
[1764349244644,104.1,138.89,138.86,7.88136854]
[1764349244948,104.1,138.89,138.86,11.66247892]
[1764349245144,104.1,138.89,138.87,0.68]
[1764349245369,104.1,138.89,138.88,3.2]
[1764349245755,104.1,138.89,138.88,3.88]
[1764349250465,21.63799632,138.9,138.88,3.88]
[1764349250654,21.63799632,138.9,138.89,0.68]
[1764349251256,28.83742036,138.9,138.89,0.68]
[1764349251461,21.63799632,138.9,138.89,0.68]
[1764349252175,28.83742036,138.9,138.89,0.68]
[1764349252549,32.61853074,138.9,138.89,0.68]
[1764349253258,28.83742036,138.9,138.89,0.68]
[1764349253844,21.63799632,138.9,138.89,0.68]
[1764349254169,16.308864,138.91,138.89,0.68]
[1764349254371,23.5096849,138.91,138.89,0.68]
[1764349254552,30.70860545,138.91,138.89,0.68]
[1764349254980,23.5096849,138.91,138.89,0.68]
[1764349255352,30.70867881,138.91,138.89,0.68]
[1764349256277,23.50785791,138.91,138.89,0.68]
[1764349256481,104.1,138.9,138.89,0.68]
[1764349257349,104.1,138.9,138.89,3.88]
[1764349258569,115.08053442,138.9,138.85,7.2018644]
[1764349258770,104.1,138.89,138.88,0.68]
[1764349258965,10.98053442,138.9,138.88,0.68]
[1764349260278,37.898864,138.86,138.84,64.01515152]
[1764349260465,3.78111038,138.85,138.84,64.01515152]
[1764349260660,25.37111038,138.85,138.84,64.01515152]
[1764349260858,25.37111038,138.85,138.83,0.1]
[1764349260859,0.28432314,138.84,138.83,0.1]
[1764349261084,0.28432314,138.84,138.72,18.02173605]
[1764349261085,33.88426806,138.84,138.72,7.20838141]
[1764349261285,33.88426806,138.84,138.71,65.32369146]
[1764349261286,16.308864,138.72,138.71,65.32369146]
[1764349261455,20.08997438,138.72,138.71,65.32369146]
[1764349261662,41.67997438,138.72,138.71,65.32369146]
[1764349261965,66.83824904,138.72,138.66,0.115284]
[1764349262166,16.308864,138.67,138.66,0.115284]
[1764349262585,20.08997438,138.67,138.66,0.115284]
[1764349263378,69.68478261,138.71,138.66,0.795284]
[1764349263579,23.51814955,138.71,138.66,3.995284]
[1764349263887,3.78111038,138.69,138.66,0.795284]
[1764349264089,3.78111038,138.68,138.66,0.795284]
[1764349264288,16.308864,138.68,138.66,0.115284]
[1764349264583,10.0638346,138.67,138.66,0.115284]
[1764349264798,16.308864,138.67,138.66,0.115284]
[1764349264988,26.3726986,138.67,138.66,0.115284]
[1764349265898,25.11880892,138.66,138.59,0.72]
[1764349266192,26.3726986,138.63,138.6,0.72]
[1764349266405,16.308864,138.63,138.6,0.72]
[1764349266575,16.308864,138.63,138.58,70.09382196]
[1764349266778,10.0638346,138.61,138.59,0.72]
[1764349266986,16.308864,138.63,138.59,0.72]
[1764349267293,26.3726986,138.63,138.59,0.72]
[1764349267496,31.7471854,138.62,138.59,0.72]
[1764349267701,10.0638346,138.6,138.58,69.37382196]
[1764349267986,10.0638346,138.59,138.58,69.37382196]
[1764349268187,17.27936241,138.59,138.58,69.37382196]
[1764349268490,7.21552781,138.59,138.58,69.37382196]
[1764349268662,21.6833508,138.62,138.58,70.09382196]
[1764349268986,28.897757,138.62,138.59,0.72]
[1764349269896,21.6833508,138.62,138.59,0.72]
[1764349270388,38.96126686,138.62,138.58,69.37382196]
[1764349270595,45.20629626,138.62,138.58,70.09382196]
[1764349270902,10.0638346,138.61,138.58,69.37382196]
[1764349271195,26.3726986,138.59,138.58,69.37382196]
[1764349271397,26.3726986,138.59,138.46,18.05541658]
[1764349271398,0.14216157,138.58,138.46,18.05541658]
[1764349271600,10.0638346,138.52,138.48,0.72]
[1764349271771,16.308864,138.55,138.49,10.0638346]
[1764349271970,10.0638346,138.54,138.48,10.7838346]
[1764349272165,20.50217279,138.54,138.49,0.72]
[1764349272368,10.0638346,138.5,138.45,68.66077135]
[1764349272678,19.528864,138.51,138.45,67.94077135]
[1764349272983,10.0638346,138.49,138.45,67.94077135]
[1764349273182,19.528864,138.51,138.45,67.94077135]
[1764349273498,36.4365332,138.54,138.46,0.72]
[1764349273905,36.4365332,138.54,138.49,10.0638346]
[1764349274078,26.3726986,138.54,138.48,7.22125938]
[1764349274277,26.3726986,138.54,138.49,0.72]
[1764349274472,26.3726986,138.54,138.51,10.0638346]
[1764349274804,18.03389846,138.63,138.53,5.78751097]
[1764349274977,3.22,138.62,138.57,5.78751097]
[1764349275301,13.03426806,138.62,138.58,6.47751097]
[1764349275801,13.03426806,138.62,138.59,0.69]
[1764349275972,17.02846229,138.62,138.59,0.69]
[1764349276171,9.81426806,138.62,138.61,5.78751097]
[1764349276404,9.81426806,138.62,138.59,11.12534924]
[1764349276405,9.81426806,138.62,138.6,8.80994492]
[1764349276702,9.81426806,138.62,138.61,5.78751097]
[1764349276880,9.81426806,138.62,138.61,0.69]
[1764349277182,9.81426806,138.62,138.61,6.47751097]
[1764349277372,9.81426806,138.62,138.56,5.78751097]
[1764349277573,9.81426806,138.62,138.58,5.78751097]
[1764349277773,23.5224593,138.63,138.54,9.09426806]
[1764349277980,23.5224593,138.63,138.53,18.33084298]
[1764349277981,5.78751097,138.62,138.58,5.78751097]
[1764349278208,11.57502194,138.62,138.56,3.22]
[1764349278512,11.57502194,138.62,138.56,9.09426806]
[1764349278513,5.78751097,138.62,138.56,9.09426806]
[1764349278709,5.78751097,138.62,138.59,5.78751097]
[1764349278904,5.78751097,138.62,138.6,5.78751097]
[1764349279100,5.78751097,138.62,138.58,5.78751097]
[1764349279279,5.78751097,138.62,138.58,3.22]
[1764349279479,5.78751097,138.62,138.59,0.69]
[1764349279876,16.308864,138.63,138.59,7.90549695]
[1764349280182,25.40313206,138.63,138.59,13.69300792]
[1764349280390,25.40313206,138.63,138.6,0.69]
[1764349280601,25.40313206,138.63,138.6,6.47751097]
[1764349280983,16.308864,138.63,138.61,0.69]
[1764349281919,5.78751097,138.65,138.61,0.69]
[1764349282279,16.308864,138.63,138.61,0.69]
[1764349282504,16.308864,138.64,138.61,0.69]
[1764349282801,3.72,138.68,138.62,5.78751097]
[1764349282802,7.21199848,138.66,138.62,5.78751097]
[1764349283001,23.52086248,138.66,138.63,0.69]
[1764349283401,16.308864,138.63,138.58,0.69]
[1764349283604,5.78751097,138.62,138.59,0.69]
[1764349283910,16.308864,138.63,138.59,6.47751097]
[1764349284209,7.21233116,138.66,138.61,5.78751097]
[1764349284210,5.78751097,138.66,138.61,5.78751097]
[1764349284407,16.308864,138.65,138.63,5.78751097]
[1764349284607,16.308864,138.65,138.61,0.69]
[1764349284904,3.24,138.67,138.63,5.78751097]
[1764349285106,7.21188518,138.66,138.62,5.78751097]
[1764349285303,16.308864,138.65,138.63,0.69]
[1764349285995,16.308864,138.65,138.63,6.47751097]
[1764349286184,16.308864,138.65,138.62,5.78751097]
[1764349286689,23.52178956,138.64,138.61,0.69]
[1764349286898,23.52178956,138.64,138.61,6.47751097]
[1764349287299,23.52178956,138.64,138.61,0.69]
[1764349288198,23.52178956,138.64,138.61,6.47751097]
[1764349288385,16.308864,138.64,138.62,5.78751097]
[1764349288581,23.52104947,138.66,138.62,6.47751097]
[1764349288787,23.52104947,138.66,138.63,0.69]
[1764349289106,23.52104947,138.66,138.6,0.69]
[1764349289107,29.30856044,138.66,138.6,0.69]
[1764349289312,29.80856044,138.66,138.61,0.69]
[1764349289512,42.05076243,138.66,138.61,0.69]
[1764349289703,47.8382734,138.66,138.61,0.69]
[1764349289888,5.78751097,138.65,138.61,0.69]
[1764349290086,25.2507034,138.61,138.54,0.69]
[1764349290285,25.2507034,138.61,138.48,5.78751097]
[1764349290286,16.308864,138.59,138.55,6.47751097]
[1764349290485,16.308864,138.59,138.57,5.78751097]
[1764349290792,22.09637497,138.59,138.53,0.69]
[1764349290995,16.308864,138.58,138.54,5.78751097]
[1764349291294,22.09637497,138.58,138.54,5.78751097]
[1764349291496,16.308864,138.58,138.55,0.69]
[1764349291707,22.09637497,138.58,138.55,0.69]
[1764349291890,13.00377575,138.58,138.55,0.69]
[1764349292095,7.21626478,138.58,138.55,0.69]
[1764349292989,13.0032422,138.59,138.55,0.69]
[1764349293487,7.21573123,138.59,138.55,6.47751097]
[1764349294013,7.21573123,138.59,138.56,0.69]
[1764349294210,104.1,138.58,138.56,0.69]
[1764349295793,104.1,138.58,138.57,5.78751097]
[1764349295994,23.52406631,138.6,138.56,6.47751097]
[1764349296516,23.52406631,138.6,138.57,5.78751097]
[1764349296817,16.308864,138.62,138.57,0.7]
[1764349297008,0.71,138.66,138.61,5.78751097]
[1764349297192,0.71,138.66,138.58,8.80994492]